Cogmind - Beta 11.1 @@@ ROGUE MODE // 2022.05.12 @ 00:42:11 Player: RX86 Result: Self-destructed Performance ------------- Evolutions (1) 500 Regions Visited (4) 800 Robots Destroyed (25) 125 Value Destroyed (752) 752 Prototype IDs (2) 40 Alien Tech Used (0) 0 Bonus (0) 0 TOTAL SCORE: 2217 Bonus ------- None Cogmind --------- Core Integrity 205/400 Matter 300/300 Energy 280/280 System Corruption 0% Temperature Cool (0) Movement Flying (34) Location -9/Storage Parts ------- > --- POWER (1) -------- Heavy Ion Engine > --- PROPULSION (3) --- Improved Flight Unit Improved Flight Unit Improved Flight Unit > --- UTILITY (3) ------ Small Storage Unit Melee Analysis Suite > --- WEAPON (2) ------- (None) > --- INVENTORY (8) ---- Improved Flight Unit Medium Storage Unit ECM Suite Hardened Light Armor Plating Light EM Pulse Cannon Mini Grenade Launcher Peak State ------------ > --- POWER ------------ Light Nuclear Core > --- PROPULSION ------- Improved Flight Unit Improved Flight Unit Improved Flight Unit > --- UTILITY ---------- Medium Storage Unit ECM Suite Hardened Medium Armor Plating > --- WEAPON ----------- Light EM Pulse Cannon Katana > --- INVENTORY -------- Light Ion Engine Aluminum Leg Aluminum Leg Aluminum Leg Small Storage Unit Seismic Detector Melee Analysis Suite Hardened Light Armor Plating Light Assault Rifle Mini Grenade Launcher [Rating: 23] Favorites ----------- Power Ion Engine Engine Ion Engine Power Core Light Nuclear Core Propulsion Aluminum Leg Leg Aluminum Leg Wheel Compact Wheel Flight Unit Improved Flight Unit Utility Small Storage Unit Device ECM Suite Storage Small Storage Unit Processor Melee Analysis Suite Protection Light Armor Plating Weapon EM Shotgun Energy Gun EM Shotgun Energy Cannon Light EM Pulse Cannon Ballistic Gun Light Assault Rifle Launcher Mini Grenade Launcher Slashing Weapon Katana Build | -11 -10 -10 -9 -9 ------- Run | Scr Mat Min Mat Sto Slots Evolved 2 | . . . 2 . Power . | . . . . . Propulsion 1 | . . . 1 . Utility 1 | . . . 1 . Weapon . | . . . . . Parts Attached 58 | 7 3 8 34 6 Power 6 | 1 . 1 3 1 Engine 5 | 1 . 1 2 1 Core 1 | . . . 1 . Reactor . | . . . . . Propulsion 16 | 3 . 2 11 . Treads . | . . . . . Leg 9 | 2 . 2 5 . Wheel 1 | 1 . . . . Hover . | . . . . . Flight 6 | . . . 6 . Utility 12 | 1 1 1 6 3 Device 3 | . . 1 1 1 Storage 3 | 1 . . 2 . Processor 1 | . . . . 1 Hackware . | . . . . . Protection 5 | . 1 . 3 1 Artifact . | . . . . . Weapon 24 | 2 2 4 14 2 Energy Gun 7 | . 2 2 3 . Energy Cannon 4 | . . . 3 1 Ballistic Gun 5 | 2 . 1 2 . Ballistic Cannon . | . . . . . Launcher 6 | . . 1 5 . Special Weapon . | . . . . . Impact Weapon . | . . . . . Slashing Weapon 2 | . . . 1 1 Piercing Weapon . | . . . . . Special Melee Weapon . | . . . . . Unidentified Prototypes 2 | . . . 1 1 Parts Lost 6 | . . 1 2 3 Power 1 | . . . . 1 Propulsion 1 | . . . 1 . Utility 2 | . . 1 . 1 Weapon 2 | . . . 1 1 Highest Loss Streak 3 | . . 1 1 3 To Critical Strikes . | . . . . . Average Slot Usage (%) 92 | . 93 93 94 82 Engine 9 | . 14 14 4 10 Core 2 | . . . 6 . Leg 22 | . 28 28 24 . Flight 7 | . . . 7 33 Device 5 | . . . 11 6 Storage 12 | . 14 14 11 11 Processor 1 | . . . . 10 Protection 7 | . 8 6 9 1 Energy Gun 13 | . 18 26 5 . Energy Cannon 2 | . . . 6 2 Ballistic Gun 2 | . 9 . . . Launcher 1 | . . . 2 . Slashing Weapon 2 | . . . 3 9 Naked Turns . | . . . . . Heaviest Build 34 | 13 19 19 34 15 Greatest Support 30 | 20 20 20 30 15 Greatest Overweight (x) 1 | 1 . . 1 . Average Overweight (x) . | . . . . . Largest Inventory Capacity 10 | 8 8 8 10 8 Average Capacity 8 | 6 8 8 9 8 Most Carried 10 | 2 8 8 10 8 Average Carried 6 | 1 4 7 8 6 Final Capacity 8 | 8 8 8 8 8 Final Carried 8 | 2 7 7 8 6 Class Distribution -------------------- 88% | Mutant 11% | Scavenger-Mutant Dominant Class ---------------- Mutant | -10/Materials Mutant | -10/Mines Mutant | -9/Materials Mutant | -9/Storage Resources | -11 -10 -10 -9 -9 ----------- Run | Scr Mat Min Mat Sto Matter Collected 817 | 255 . 101 388 73 Remotely . | . . . . . Salvage Created 902 | . 97 219 467 119 Parts 49 | . 3 22 20 4 Haulers Intercepted 1 | . . . 1 . Recyclers Shooed . | . . . . . Parts Field Recycled . | . . . . . Retrieved Matter . | . . . . . Parts Self-Destructed . | . . . . . Prevented . | . . . . . Kills | -11 -10 -10 -9 -9 ------- Run | Scr Mat Min Mat Sto Combat Hostiles Destroyed 23 | . 2 9 9 3 Melee 5 | . . . 2 3 Guns 9 | . . 6 3 . Cannons 4 | . . . 4 . AOE 5 | . 2 3 . . Classes Destroyed 6 | . 2 1 3 . Hauler 1 | . . . 1 . Watcher 1 | . 1 . . . Swarmer 5 | . . 5 . . Grunt 14 | . 2 4 6 2 Duelist 1 | . . . 1 . Sentry 3 | . . . 2 1 Best Kill Streak 4 | . 3 3 4 2 Combat Bots Only 3 | . 2 3 3 2 Max Kills in Single Turn 3 | . 3 2 1 1 Gunslinging . | . . . . . Exploded 2 | . 2 1 . . Melee 1 | . . . 1 1 Uniques/NPCs Destroyed . | . . . . . Combat | -11 -10 -10 -9 -9 -------- Run | Scr Mat Min Mat Sto Damage Taken 1045 | . 121 167 443 314 Core 195 | . . . 90 105 Absorbed by Shields . | . . . . . Regen/Repaired (Parts) 16 | . . . . 16 Core Remaining (%) 100 | 100 . 100 . . Volleys Fired 47 | . 5 12 30 . Largest 2 | . 2 2 1 . Hottest 90 | . 90 90 56 . Shots Fired 64 | . 10 24 30 . Gun 41 | . 10 22 9 . Cannon 19 | . . . 19 . Launcher 4 | . . 2 2 . Special . | . . . . . Kinetic 3 | . . 2 1 . Thermal . | . . . . . Explosive 4 | . . 2 2 . Electromagnetic 57 | . 10 20 27 . Robot Hit Streak 6 | . 4 5 6 . Robot Miss Streak 7 | . 7 4 2 . Penetration Max . | . . . . . Secondary Targets . | . . . . . Shots Hit Robots 64 | . 7 16 24 17 Core Hits 38 | . 5 15 15 3 Critical Kills . | . . . . . Critical Parts Destroyed . | . . . . . Critical Strikes 2 | . . . . 2 Sever 2 | . . . . 2 Melee Attacks 52 | . . . 9 43 Impact . | . . . . . Slashing 52 | . . . 9 43 Piercing . | . . . . . Sneak Attacks 1 | . . . . 1 Combat Hostiles 1 | . . . . 1 Follow-up Attacks . | . . . . . Damage Inflicted 1833 | . 367 287 568 611 Guns 361 | . 109 153 99 . Cannons 220 | . . . 220 . Explosions 420 | . 258 134 28 . Melee 832 | . . . 221 611 Ramming . | . . . . . Kinetic 13 | . . 13 . . Thermal 322 | . 258 36 28 . Explosive 98 | . . 98 . . Electromagnetic 568 | . 109 140 319 . Impact . | . . . . . Slashing 832 | . . . 221 611 Piercing . | . . . . . Highest Corruption . | . . . . . Average Corruption . | . . . . . Corruption Purged . | . . . . . Corruption Blocked . | . . . . . Overload Shots . | . . . . . Overflow Damage 54 | . 36 . 18 . Projectiles . | . . . . . Explosions 36 | . 36 . . . Melee 18 | . . . 18 . Knockbacks . | . . . . . Impact . | . . . . . Kinetic . | . . . . . Secondary . | . . . . . Self-Inflicted Damage 43 | . 23 . 20 . Shots 3 | . 1 . 2 . Rammed . | . . . . . Targets Rammed . | . . . . . Kicked . | . . . . . Crushed . | . . . . . Highest Temperature 222 | . 99 222 126 . Average Temperature 60 | . 46 80 52 . Received Heat Transfer 429 | . 54 60 189 126 Siege Activations . | . . . . . Robots Corrupted . | . . . . . Combat Hostiles . | . . . . . Parts Fried . | . . . . . Impact Corruptions . | . . . . . Robots Melted . | . . . . . Combat Hostiles . | . . . . . Parts Melted . | . . . . . Heat Transferred 400 | . 350 . 50 . Parts Sabotaged . | . . . . . Parts Stolen . | . . . . . Parts Stripped . | . . . . . Power Chain Reactions 5 | . 3 1 1 . Missiles Intercepted . | . . . . . Alert | -11 -10 -10 -9 -9 ------- Run | Scr Mat Min Mat Sto Peak Influence 317 | . 138 317 278 305 Initial 64 | . . 8 45 64 Average 131 | . 47 171 148 169 Maximum Alert Level 1 | . . 1 1 1 Low Security (%) 79 | 100 100 59 89 52 Level 1 20 | . . 40 10 47 Level 2 . | . . . . . Level 3 . | . . . . . Level 4 . | . . . . . Level 5 . | . . . . . High Security . | . . . . . Max Security . | . . . . . Squads Dispatched 4 | . 1 . 2 1 Investigation 1 | . . . 1 . Extermination . | . . . . . Reinforcement 3 | . 1 . 1 1 Assault . | . . . . . Garrison . | . . . . . Intercept . | . . . . . Searches Triggered . | . . . . . Construction Impeded . | . . . . . Haulers Reinforced . | . . . . . Active Scanning Responses . | . . . . . Cargo Convoy Interrupts . | . . . . . Stealth | -11 -10 -10 -9 -9 --------- Run | Scr Mat Min Mat Sto Distress Signals 4 | . 1 . 2 1 Communications Jammed . | . . . . . Distress Signals . | . . . . . Times Spotted 41 | . 6 9 18 8 Peak Tracking Total 8 | . 6 3 8 5 Tactical Retreats 4 | . 1 1 . 2 Traps | -11 -10 -10 -9 -9 ------- Run | Scr Mat Min Mat Sto Traps Triggered 1 | . . . 1 . Indirectly . | . . . . . Trap Hack Attempts . | . . . . . Triggered . | . . . . . Disarmed . | . . . . . Reprogrammed . | . . . . . Reused . | . . . . . Traps Extracted . | . . . . . Installed . | . . . . . Triggered . | . . . . . Machines | -11 -10 -10 -9 -9 ---------- Run | Scr Mat Min Mat Sto Machines Disabled . | . . . . . Max in Single Turn . | . . . . . Machines Sabotaged . | . . . . . Garrisons Compromised . | . . . . . Overloaded Fab Kills . | . . . . . Hacking | -11 -10 -10 -9 -9 --------- Run | Scr Mat Min Mat Sto Machines Accessed 8 | . 3 . 3 2 Terminals 6 | . 3 . 2 1 Fabricators . | . . . . . Repair Stations 1 | . . . . 1 Recycling Units . | . . . . . Scanalyzers 1 | . . . 1 . Garrison Access . | . . . . . Total Hacks 21 | . 13 . 4 4 Successful 15 | . 9 . 3 3 Failed 6 | . 4 . 1 1 Catastrophic 1 | . . . 1 . Database Lockouts . | . . . . . Manual 6 | . 4 . 1 1 Terminals 17 | . 13 . 2 2 Fabricators . | . . . . . Repair Stations 2 | . . . . 2 Recycling Units . | . . . . . Scanalyzers 2 | . . . 2 . Garrison Access . | . . . . . Terminal Hacks 11 | . 9 . 1 1 Record 4 | . 3 . 1 . Open Door 1 | . . . . 1 Branch Access Points 1 | . 1 . . . Unreport Threat 2 | . 2 . . . Surveillance Status 1 | . 1 . . . Patrol Status 1 | . 1 . . . Coupling Status 1 | . 1 . . . Fabricator Hacks . | . . . . . Repair Station Hacks 2 | . . . . 2 Scan Component 1 | . . . . 1 Repair 1 | . . . . 1 Recycling Unit Hacks . | . . . . . Scanalyzer 2 | . . . 2 . Insert Component 1 | . . . 1 . Analyze 1 | . . . 1 . Garrison Access Hacks . | . . . . . Unauthorized Hacks . | . . . . . Terminals . | . . . . . Fabricators . | . . . . . Repair Stations . | . . . . . Recycling Units . | . . . . . Scanalyzers . | . . . . . Garrison Access . | . . . . . Data Cores Recovered . | . . . . . Used . | . . . . . Hacking Detections 7 | . 3 . 3 1 Full Trace Events 1 | . 1 . . . Feedback Events . | . . . . . Feedback Blocked . | . . . . . Robot Schematics Acquired . | . . . . . Robots Built . | . . . . . Authchips . | . . . . . Time . | . . . . . Total Robot Build Rating . | . . . . . Part Schematics Acquired 1 | . . . 1 . Parts Built . | . . . . . Authchips . | . . . . . Time . | . . . . . Total Part Build Rating . | . . . . . Parts Repaired 1 | . . . . 1 Time 38 | . . . . 38 Parts Recycled . | . . . . . Recycled Matter . | . . . . . Retrieved Matter . | . . . . . Retrieved Components . | . . . . . Parts Scanalyzed 1 | . . . 1 . Part Schematics Acquired 1 | . . . 1 . Parts Damaged . | . . . . . Bothacking | -11 -10 -10 -9 -9 ------------ Run | Scr Mat Min Mat Sto Used RIF Installer . | . . . . . Robots Hacked . | . . . . . Non-combat . | . . . . . Combat . | . . . . . Robot Hacks Applied . | . . . . . Relay Couplers Released . | . . . . . Fabnet Peak Effective % . | . . . . . Robots Rewired . | . . . . . Allies Hacked . | . . . . . Hacks Repelled . | . . . . . Allies | -11 -10 -10 -9 -9 -------- Run | Scr Mat Min Mat Sto Total Allies . | . . . . . Largest Group . | . . . . . Highest-Rated Group . | . . . . . Highest-Rated Ally . | . . . . . Total Orders . | . . . . . Ally Attacks . | . . . . . Total Damage . | . . . . . Kills . | . . . . . Allies Corrupted . | . . . . . Allies Melted . | . . . . . Intel | -11 -10 -10 -9 -9 ------- Run | Scr Mat Min Mat Sto Robot Analysis Total . | . . . . . Derelict Logs Recovered . | . . . . . Drone Launches . | . . . . . Drone Recoveries . | . . . . . Exploration | -11 -10 -10 -9 -9 ------------- Run | Scr Mat Min Mat Sto Turns Passed 1633 | 61 332 434 584 222 Spaces Moved 1227 | 42 247 307 388 243 Core 4 | 4 . . . . Treads . | . . . . . Legs 785 | 37 247 307 194 . Wheels 1 | 1 . . . . Hover . | . . . . . Flight 437 | . . . 194 243 Fastest Speed 34 | 50 120 120 34 34 Average Speed 97 | 115 120 120 104 34 Slowest Speed 190 | 120 120 120 190 34 Overloaded Moves . | . . . . . Propulsion Burnouts . | . . . . . Robots Hopped . | . . . . . Cave-ins Triggered 2 | . . . . 2 Exploration Rate (%) 33 | 4 40 67 30 25 Regions Visited 4 Branch Regions 2 Pre-discovered Areas . | . . . . . Known Exits Taken 1 | . 1 . . . Unknown Exits Taken 3 | 1 . 1 1 . Scrap Searched 1 | . . 1 . . Spaces Dug 37 | . . . 14 23 Terrain Destroyed 71 | . 12 19 17 23 Melee 23 | . . . . 23 Projectile . | . . . . . AOE 48 | . 12 19 17 . Terrain Rammed . | . . . . . Walls Destroyed . | . . . . . Machines Disabled . | . . . . . Actions | -11 -10 -10 -9 -9 --------- Run | Scr Mat Min Mat Sto Total 1514 | 51 272 352 521 318 Wait 57 | . 8 1 27 21 Move 1222 | 41 246 306 387 242 Hop . | . . . . . Pick Up 40 | 2 8 13 15 2 Fast Attach 7 | 7 . . . . Attach 14 | . 1 1 7 5 Detach 7 | . . . 5 2 Swap 37 | . 2 7 27 1 Drop 30 | 1 2 12 14 1 Fire 47 | . 5 12 30 . Melee 52 | . . . 9 43 Ram . | . . . . . Kick . | . . . . . Crush . | . . . . . Escape Stasis 1 | . . . . 1 Rewire . | . . . . . Trap . | . . . . . Miscellaneous . | . . . . . Route ------- -11/Scrapyard -10/Materials (discovered 3 exits: *Mat / *Min x2) -10/Mines -9/Materials -9/Storage History --------- Turn | Location | Event 29 | -11/Scrapyard | Discovered new exit (range 15) 62 | -11/Scrapyard | Entered Materials 140 | -10/Materials | Discovered new exit (range 12) 291 | -10/Materials | Discovered new exit (range 8) 301 | -10/Materials | Build established: Mutant 329 | -10/Materials | Identified exit to Mines 394 | -10/Materials | Entered Mines 763 | -10/Mines | Discovered new exit (range 10) 828 | -10/Mines | Entered Materials 828 | -9/Materials | Evolved 2 slots: Propulsion x1, Utility x1 871 | -9/Materials | Discovered new exit (range 16) 1412 | -9/Materials | Entered Storage 1454 | -9/Storage | Repaired Katana 1482 | -9/Storage | Crushed by falling debris 1616 | -9/Storage | Crushed by falling debris 1634 | -9/Storage | Self-destructed Last Messages --------------- 01513_ Y-45 Defender destroyed. 01514_ Acquired 30 matter. 01529_ G-34 Mercenary destroyed. 01584_ G-34 Mercenary Sml. Laser severed. 01584_ Lgt. Ion Engine destroyed. 01589_ Destroyed Heat Sink. 01592_ G-34 Mercenary Sml. Laser severed. 01603_ Seismic Detector destroyed. 01604_ G-34 Mercenary destroyed. 01604_ U-05 Engineer builds a Wall. 01605_ The unstable cave ceiling collapses. 01605_ Sml. Laser crushed. 01607_ Identified Hvy. Ion Engine. 01608_ Acquired 10 matter. 01608_ U-05 Engineer builds a Wall. 01616_ The unstable cave ceiling collapses. 01616_ Crushed by falling debris. 01617_ U-05 Engineer builds a Wall. 01631_ Katana destroyed. 01632_ U-05 Engineer builds a Wall. Map ----- +----------------------------------------------------+ | # #???????? | | # ^ ?????????? | | # " """^ """ ????????????? | | ######+########## T """ """ #?#####??????????? | | ??# #????# "^ """^ """ #? !! #??????????? | | ??# #????# # #??????????? | | ### | ###### # #??????????? | | """ + =%[ + #??????????? | | "R """" ###### !%![[ # #??????????? | | """ """" #????#####+##### #? #??????????? | | ### """" #???#####!%*#??# ##?? [ #??????????? | | ??# """" #???#*** "#??# #????? #??????????? | | ??# #???#*** "#??# #??????#??????????? | | ??##########???#####T###??# #?????????????????? | | ???????????????????###????# #?????????????????? | | ??????????????????????????# #?????????????????? | | ??????????????????????????# #?????????????????? | | ??????????????????????????# #?????????????????? | | ??????????????????????????# #?????????????????? | | ??????????????????????????# #?????????????????? | | ??????????????????????????# #?????????????????? | | ??????????????????????????# #?????????????????? | | ??????????????????????????# #?????????????????? | | ????????????????????????### #?????????????????? | | ????????????????????????### #?????????????????? | | ????????????????????????#@#[ #?????????????????? | | ????????????????????????### #?????????????????? | | ??????????????????????????# #?????????????????? | | ??????????????????????????# #?????????????????? | | ??????????????????????????# #?????????????????? | | ??????????????????????????####"#?????????????????? | | ?????????????????????????????###?????????????????? | | ?????????????????????????????????????????????????? | | ?????????????????????????????????????????????????? | | ?????????????????????????????????????????????????? | | ?????????????????????????????????????????????????? | | ?????????????????????????????????????????????????? | | ?????????????????????????????????????????????????? | | ?????????????????????????????????????????????????? | | ?????????????????????????????????????????????????? | | ?????????????????????????????????????????????????? | | ?????????????????????????????????????????????????? | | ?????????????????????????????????????????????????? | | ?????????????????????????????????????????????????? | | ?????????????????????????????????????????????????? | | ?????????????????????????????????????????????????? | | ?????????????????????????????????????????????????? | | ?????????????????????????????????????????????????? | | ?????????????????????????????????????????????????? | | ?????????????????????????????????????????????????? | +----------------------------------------------------+ Best States ------------- Heat Dissipation 28 Energy Generation 14 Energy Capacity 280 Matter Stores 300 Matter Capacity 300 Sight Range 16 Terrain Scan Density 10 ECM Strength 1 Armor Coverage 225 Evasion (%) 63 Melee Accuracy 5 Item Schematics ----------------- Mni. Grenade Launcher | -9/Materials | Scanalyzed Robot Schematics ------------------ None Fabricated ------------ Nothing Alien Tech Used ----------------- None Achievements -------------- Storm Trooper Unlikely Earthworm Challenges ------------ None Game ------ Seed CombatSwarmInsulator Manual? 0 Play Time 00:58:08 Cumulative 6.1 hours Start 2022.05.11 @ 23:40:31 End 2022.05.12 @ 00:42:11 Sessions 1 Manual Loads 0 Difficulty Rogue Special Mode None Game No. 4 Rogue 2 Adventurer 0 Explorer 2 Win Type - Total 0 Types 0/0/0/0/0/0/0/0/0 Lore% 13 Gallery% 11 Achievement% 9 Wizard Run 0 Options --------- ASCII 0 Keyboard 0 Movement Numpad Keybinds 0 Fullscreen 1 Font 18/SmallcapsGlow Map View 76x50 Tactical HUD 1 Map Filters NONE Filters NONE Steam 1 RUN: f7215d61-ccf4-407a-bc37-800673b66812